bitfinex-derivatives/quotes_ETHF0:USTF0_20260306
["timestamp","ask_amount","ask_price","bid_price","bid_amount"]
[1772765922863,0.58146244,2083.0,2082.5,0.57813573]
[1772765923958,0.58146244,2083.0,2082.3,0.57813573]
[1772765924456,0.58146244,2083.0,2082.4,0.57813573]
[1772765929160,6.288,2082.9,2082.4,0.57813573]
[1772765929359,6.86946244,2082.9,2082.4,0.57813573]
[1772765929762,6.288,2083.2,2082.5,0.57813573]
[1772765930060,6.86946244,2083.2,2082.5,0.57813573]
[1772765930261,0.58146244,2083.1,2082.5,0.57813573]
[1772765930861,6.288,2083.2,2082.5,0.57813573]
[1772765931056,0.58146244,2083.1,2082.5,0.57813573]
[1772765934668,6.288,2083.3,2082.5,0.57813573]
[1772765935067,6.86946244,2083.3,2082.5,0.57813573]
[1772765936172,6.86946244,2083.5,2082.7,0.57813573]
[1772765936372,6.288,2083.5,2082.7,0.57813573]
[1772765936573,0.58146244,2083.6,2083.0,0.57813573]
[1772765936874,6.86946244,2083.5,2083.0,0.57813573]
[1772765937074,0.58146244,2083.7,2083.0,0.57813573]
[1772765937276,0.58146244,2083.6,2083.0,0.57813573]
[1772765939076,7.82865421,2083.8,2083.0,0.57813573]
[1772765939273,0.58146244,2083.7,2083.0,0.57813573]
[1772765939978,0.58146244,2083.7,2083.2,0.56084097]
[1772765940179,0.58146244,2083.7,2083.2,0.56632717]
[1772765940982,6.29243655,2083.8,2083.4,0.56084097]
[1772765941183,6.29243655,2083.8,2083.2,0.0054862]
[1772765941184,0.00443655,2083.8,2083.6,0.56084097]
[1772765941374,6.8323051,2084.2,2083.6,0.56084097]
[1772765942273,6.83689748,2084.2,2083.6,0.56084097]
[1772765943082,6.83689748,2084.2,2083.8,0.56084097]
[1772765943083,0.54889748,2084.2,2083.8,0.56084097]
[1772765943480,0.00459238,2084.2,2083.8,0.56084097]
[1772765943976,0.00459238,2084.2,2083.5,42.33621766]
[1772765943977,0.5443051,2084.8,2084.1,0.56084097]
[1772765944180,0.5443051,2084.6,2083.9,0.56084097]
[1772765944679,6.8313051,2084.6,2083.9,0.56084097]
[1772765944983,0.5443051,2084.5,2083.9,0.56084097]
[1772765948384,0.5443051,2084.4,2083.9,0.56084097]
[1772765950485,0.5443051,2084.4,2084.1,0.56084097]
[1772765950982,6.8313051,2084.5,2084.1,0.56084097]
[1772765951386,0.00520138,2084.6,2084.2,1.53621766]
[1772765951583,0.54950648,2084.6,2084.2,1.53621766]
[1772765951888,0.54950648,2084.6,2084.3,0.56084097]
[1772765952586,0.54950648,2084.6,2084.0,0.56084097]
[1772765957579,0.54950648,2084.6,2083.8,2.09705863]
[1772765957887,0.5443051,2084.2,2083.6,0.56084097]
[1772765958490,0.5443051,2084.2,2083.7,0.56084097]
[1772765961292,0.5443051,2083.9,2083.5,0.56084097]
[1772765961491,0.5443051,2083.9,2083.2,0.0054862]
[1772765961492,0.5443051,2083.9,2083.3,0.56084097]
[1772765961687,0.5443051,2083.7,2083.3,0.56084097]
[1772765961892,0.5443051,2083.7,2083.4,0.56084097]
[1772765962391,0.5443051,2083.7,2083.2,0.56632717]
[1772765965594,0.5443051,2083.5,2083.1,0.56084097]
[1772765965894,0.5443051,2083.4,2083.1,0.56084097]
[1772765966093,0.5443051,2083.4,2083.0,0.56084097]
[1772765966688,0.5443051,2083.4,2083.0,0.56530193]
[1772765968196,0.5443051,2084.0,2083.3,0.56084097]
[1772765968496,0.5443051,2083.8,2083.3,0.56084097]
[1772765968794,0.5443051,2083.7,2083.3,0.56084097]
[1772765969397,0.55223876,2083.6,2083.3,0.56084097]
[1772765971196,6.85345741,2083.7,2083.3,0.56084097]
[1772765972093,0.56545741,2083.7,2083.3,0.56084097]
[1772765972294,6.288,2083.8,2083.3,0.56084097]
[1772765972498,6.85345741,2083.8,2083.3,0.56084097]
[1772765972698,0.56545741,2083.7,2083.3,0.56084097]
[1772765974793,0.56545741,2083.9,2083.3,0.56084097]
[1772765977402,0.56545741,2083.8,2083.1,0.54934676]
[1772765977602,0.56545741,2083.8,2083.3,0.54934676]
[1772765980102,6.85345741,2083.8,2083.3,0.54934676]
[1772765980702,0.56545741,2083.8,2083.3,0.54934676]
[1772765981007,0.56545741,2083.8,2083.4,1.53621766]
[1772765981208,0.56545741,2083.8,2083.5,0.54934676]
[1772765981601,0.56545741,2083.9,2083.5,0.54934676]
[1772765982101,0.56545741,2083.9,2083.2,1.53621766]
[1772765982307,0.56545741,2083.9,2083.3,0.54934676]
[1772765988922,0.56545741,2083.8,2083.3,0.54934676]
[1772765989118,6.288,2083.9,2083.3,0.54934676]
[1772765989323,6.288,2083.9,2083.2,1.53621766]
[1772765989324,0.56545741,2083.8,2083.5,0.54934676]
[1772765990022,0.56545741,2084.0,2083.7,0.54934676]
[1772765990521,6.85345741,2084.1,2083.7,0.54934676]
[1772765992120,0.56545741,2084.5,2083.9,1.53621766]
[1772765992424,0.56545741,2084.5,2084.0,0.54934676]
[1772765992624,0.57065879,2084.6,2084.0,0.54934676]
[1772765992825,0.00520138,2084.6,2084.2,0.54934676]
[1772765993024,0.00520138,2084.6,2083.6,7.76952715]
[1772765993025,0.00520138,2084.6,2084.4,0.54934676]
[1772765993223,6.85345741,2084.9,2084.4,0.54934676]
[1772765993224,0.56545741,2084.8,2084.4,0.54934676]
[1772765994125,0.56988039,2084.8,2084.4,0.54934676]
[1772765995127,0.56988039,2084.8,2084.3,2.08556442]
[1772765995627,0.56988039,2084.8,2084.1,41.34934676]
[1772765995823,0.56988039,2084.8,2084.1,0.54934676]
[1772765995824,0.56545741,2084.6,2084.1,0.54934676]
[1772765996230,0.56545741,2084.4,2084.1,0.54934676]
[1772765999722,0.56545741,2084.4,2083.3,18.961]
[1772765999723,0.56545741,2084.4,2083.7,0.54934676]
[1772766000623,0.56545741,2084.4,2083.4,40.8]
[1772766000624,0.57955194,2084.3,2083.4,0.56852777]
[1772766001629,6.287,2084.2,2083.5,0.56852777]
[1772766001831,6.287,2084.4,2083.9,0.56852777]
[1772766002132,6.86655194,2084.4,2083.9,0.56852777]
[1772766002332,0.57955194,2084.3,2083.9,0.56852777]
[1772766002729,0.57955194,2084.4,2083.9,0.56852777]
[1772766002927,0.57955194,2084.7,2084.0,0.56852777]
[1772766003129,6.86755194,2084.7,2084.0,0.56852777]
[1772766003333,6.288,2084.7,2084.0,0.56852777]
[1772766003933,0.57955194,2084.6,2083.8,0.56852777]
[1772766006726,0.58397492,2084.8,2083.8,0.56852777]
[1772766009734,0.57955194,2084.7,2083.8,0.56852777]
[1772766011635,0.58397492,2084.8,2084.0,0.56852777]
[1772766012032,0.00442298,2084.8,2084.0,0.56852777]
[1772766013436,0.00442298,2084.8,2084.2,0.56852777]
[1772766013738,0.57955194,2085.1,2084.2,0.56852777]
[1772766013939,0.57955194,2085.5,2084.2,0.56852777]
[1772766014139,0.57955194,2085.3,2084.2,0.56852777]
[1772766014739,0.58493861,2085.3,2084.2,0.56852777]
[1772766015938,0.57955194,2085.2,2084.2,0.56852777]
[1772766016139,0.58493861,2085.3,2084.2,0.56852777]
[1772766016339,0.58493861,2085.3,2084.4,0.56852777]
[1772766017240,0.00538667,2085.3,2084.4,0.56852777]
[1772766017833,0.57955194,2085.9,2084.5,0.23985]
[1772766018039,0.57955194,2085.7,2084.6,0.56852777]
[1772766019037,0.58338095,2085.7,2084.8,0.56852777]
[1772766019940,0.58338095,2085.7,2084.7,40.8]
[1772766019941,0.58338095,2085.7,2084.7,41.36852777]
[1772766020738,0.58338095,2085.7,2084.8,0.56852777]
[1772766026150,0.57955194,2085.5,2084.8,0.56852777]
[1772766026350,0.57955194,2085.6,2084.8,0.56852777]
[1772766026648,6.86938095,2085.7,2084.8,0.56852777]
[1772766026850,0.58338095,2085.7,2084.8,0.56852777]
[1772766029347,0.58338095,2085.7,2084.7,40.8]
[1772766029548,0.58338095,2085.7,2084.8,0.58409841]
[1772766030956,0.58338095,2085.7,2084.6,0.57209815]
[1772766031454,0.58338095,2085.7,2084.7,0.56632018]
[1772766031952,0.59305063,2085.5,2084.7,0.56632018]
[1772766032252,0.59305063,2085.3,2084.7,0.56632018]
[1772766034450,6.285,2085.5,2084.7,0.56632018]
[1772766034653,0.59305063,2085.6,2084.7,0.56632018]
[1772766035556,0.59687964,2085.7,2084.7,0.56632018]
[1772766035856,0.59687964,2085.7,2084.8,0.56632018]
[1772766036053,0.00382901,2085.7,2084.8,0.56632018]
[1772766036854,0.59687964,2085.7,2084.8,0.56632018]
[1772766037757,0.59687964,2085.7,2085.0,0.56632018]
[1772766038154,0.59687964,2085.7,2084.9,40.8]
[1772766038458,0.59305063,2085.5,2084.7,0.56632018]
[1772766038656,0.59305063,2085.3,2084.7,0.56632018]
[1772766038960,6.285,2085.4,2084.7,0.56632018]
[1772766039256,0.59687964,2085.7,2084.7,0.56632018]
[1772766040160,0.59305063,2085.5,2084.7,0.56632018]
[1772766040554,0.59305063,2085.3,2084.7,0.56632018]
[1772766042662,0.59305063,2085.4,2084.7,0.56632018]
[1772766043860,0.59305063,2085.4,2084.6,0.00577797]
[1772766044056,0.59305063,2085.2,2084.6,0.00577797]
[1772766044260,0.59305063,2085.0,2084.3,0.56632018]
[1772766044462,0.59305063,2084.9,2084.3,0.56632018]
[1772766044663,0.59305063,2084.9,2084.1,0.56632018]
[1772766044860,0.59305063,2084.7,2084.1,0.56632018]
[1772766045056,0.59305063,2084.7,2083.7,0.56632018]
[1772766045264,0.59305063,2084.7,2083.7,0.57138879]
[1772766045764,0.59305063,2084.5,2083.7,0.57138879]
[1772766049366,6.87905063,2084.5,2083.7,0.57138879]
[1772766050367,0.59305063,2084.5,2083.7,0.57138879]
[1772766052269,6.87905063,2084.7,2083.7,0.57138879]
[1772766052568,0.59305063,2084.6,2083.7,0.57138879]
[1772766056076,0.59305063,2085.0,2083.7,0.57138879]
[1772766056378,0.59305063,2084.8,2083.7,0.57138879]
[1772766058475,0.59305063,2084.8,2083.9,0.56632018]
[1772766061673,3.98518101,2085.4,2083.9,0.56632018]
[1772766061874,0.55884341,2085.2,2083.9,0.56632018]
[1772766062874,6.84584341,2085.2,2084.2,0.59616916]
[1772766063067,0.55884341,2085.1,2084.2,0.59616916]
[1772766063774,0.55884341,2084.9,2083.9,0.59616916]
[1772766067485,0.55884341,2085.1,2084.2,0.59616916]
[1772766069076,0.55884341,2085.1,2084.0,0.59616916]
[1772766070485,0.55884341,2084.9,2084.0,0.59616916]
[1772766070685,0.55884341,2084.9,2083.8,0.59616916]
[1772766073387,0.55884341,2084.7,2083.8,0.59616916]
[1772766074491,6.84584341,2084.9,2083.9,0.59616916]
[1772766074688,0.55884341,2084.8,2083.9,0.59616916]
[1772766075590,0.55884341,2085.0,2083.9,0.59616916]
[1772766076183,0.55884341,2085.0,2084.1,0.59616916]
[1772766077492,0.55884341,2085.0,2084.0,0.23991]
[1772766077493,0.55884341,2085.0,2083.9,7.52958715]
[1772766077694,0.55884341,2084.4,2083.8,0.59616916]
[1772766078184,0.55884341,2084.4,2083.7,0.00506861]
[1772766078389,0.55884341,2084.4,2083.7,0.60123777]
[1772766079185,0.55884341,2084.6,2083.7,0.60123777]
[1772766079391,6.84584341,2084.6,2083.7,0.60123777]
[1772766079887,0.55884341,2084.5,2083.7,0.60123777]
[1772766084194,0.55884341,2084.5,2083.8,40.8]
[1772766084390,0.55884341,2084.7,2083.9,0.59616916]
[1772766084592,6.84584341,2084.7,2083.9,0.59616916]
[1772766084793,0.55884341,2084.6,2083.9,0.59616916]
[1772766096505,2.11242138,2084.5,2083.9,0.59616916]
[1772766096800,0.57721547,2084.4,2083.9,0.59616916]
[1772766097301,0.57721547,2084.4,2083.8,41.39067676]
[1772766097801,0.57721547,2084.4,2083.9,0.59067676]
[1772766098001,1.53520591,2084.6,2083.9,0.59067676]
[1772766098202,6.287,2084.5,2083.9,0.59067676]
[1772766098501,6.86421547,2084.5,2083.9,0.59067676]
[1772766098803,0.57721547,2084.4,2083.9,0.59067676]
[1772766103702,0.57721547,2084.3,2083.9,0.59067676]
[1772766105904,1.53520591,2084.0,2083.7,0.00506861]
[1772766106104,0.57721547,2083.9,2083.6,0.59067676]
[1772766106605,0.57721547,2084.4,2083.7,0.59067676]
[1772766106797,0.57721547,2084.3,2083.7,0.59067676]
[1772766107607,0.58112318,2084.3,2083.7,0.59586763]
[1772766108905,0.57721547,2084.1,2083.7,0.00519087]
[1772766109108,0.57721547,2084.1,2083.6,0.59067676]
[1772766110011,0.57721547,2084.1,2083.6,0.59656313]
[1772766110707,0.57721547,2083.9,2083.4,0.59067676]
[1772766110909,0.57721547,2083.9,2083.2,0.59067676]
[1772766111412,0.57721547,2083.9,2083.3,0.59067676]
[1772766111812,0.57721547,2083.9,2083.3,0.59535018]
[1772766112910,0.57721547,2083.9,2083.4,1.53520591]
[1772766113114,6.86521547,2083.8,2083.5,0.59067676]
[1772766113413,6.86521547,2083.8,2083.4,0.59067676]
[1772766113614,0.57721547,2083.7,2083.4,0.59067676]
[1772766114015,0.57721547,2083.7,2083.3,0.59535018]
[1772766114612,6.86521547,2083.8,2083.3,0.59535018]
[1772766116509,6.288,2083.8,2083.3,0.59535018]
[1772766117018,6.86521547,2083.8,2083.3,0.59535018]
[1772766117415,0.57721547,2083.7,2083.3,0.59535018]
[1772766118513,0.57721547,2084.1,2083.3,0.59535018]
[1772766118717,6.86521547,2084.0,2083.3,0.59535018]
[1772766118917,0.57721547,2083.9,2083.3,0.59535018]
[1772766123218,0.57721547,2083.9,2083.3,0.00467342]
[1772766124217,0.57721547,2083.9,2083.3,0.59407429]
[1772766124818,0.57721547,2083.9,2083.3,0.00467342]
[1772766125220,0.57721547,2083.9,2083.3,0.59407429]
[1772766126118,6.288,2084.0,2083.4,0.58940087]
[1772766126318,6.288,2084.2,2083.4,0.58940087]
[1772766126812,6.86473732,2084.2,2083.4,0.58940087]
[1772766128115,0.58064503,2084.3,2083.6,0.58940087]
[1772766128420,6.86864503,2084.3,2083.6,0.58940087]
[1772766128820,0.57673732,2084.2,2083.6,0.58940087]
[1772766130824,0.00390771,2084.3,2083.8,0.58940087]
[1772766131926,0.58064503,2084.3,2083.8,0.58940087]
[1772766137729,0.58064503,2084.3,2083.6,0.58940087]
[1772766142038,0.57673732,2084.1,2083.4,0.58940087]
[1772766143138,0.57673732,2083.9,2083.4,0.58940087]
[1772766143435,6.288,2084.0,2083.4,0.58940087]
[1772766143436,0.57673732,2084.1,2083.4,0.58940087]
[1772766143641,6.86864503,2084.3,2083.5,0.58940087]
[1772766143840,0.58064503,2084.3,2083.5,0.58940087]
[1772766145836,0.58064503,2084.3,2083.7,0.58940087]
[1772766145837,0.00390771,2084.3,2083.7,0.58940087]
[1772766146240,6.288,2084.5,2083.9,0.58940087]
[1772766146446,6.86473732,2084.5,2083.9,0.58940087]
[1772766146640,0.57673732,2084.8,2084.1,0.58940087]
[1772766146838,0.57673732,2084.7,2084.1,0.58940087]
[1772766147239,0.58156622,2084.7,2084.1,0.58940087]
[1772766147643,0.58156622,2084.7,2084.3,0.58940087]
[1772766147644,0.0048289,2084.7,2084.3,0.58940087]
[1772766147845,4.00625042,2085.2,2084.3,0.58940087]
[1772766147846,0.57673732,2085.2,2084.3,0.58940087]
[1772766148144,6.07726188,2085.1,2084.3,0.58940087]
[1772766148345,0.57673732,2085.1,2084.4,0.58940087]
[1772766148841,0.58163332,2085.1,2084.4,0.58940087]
[1772766150442,0.004896,2085.1,2084.5,0.58974853]
[1772766151642,0.59307543,2085.1,2084.5,0.58974853]
[1772766154051,0.004896,2085.1,2084.5,0.58974853]
[1772766154246,0.58817943,2085.4,2084.6,0.58974853]
[1772766155153,0.59242364,2085.4,2084.6,0.58974853]
[1772766155653,0.00424421,2085.4,2084.6,0.58974853]
[1772766156057,0.59242364,2085.4,2084.6,0.58974853]
[1772766157655,0.58817943,2085.3,2084.6,0.58974853]
[1772766165755,0.58817943,2085.3,2083.8,0.58974853]
[1772766165954,0.58817943,2085.1,2083.8,0.58974853]
[1772766166358,6.286,2085.0,2083.8,0.58974853]
[1772766166550,0.58817943,2084.9,2083.8,0.58974853]
[1772766170457,0.58817943,2084.9,2083.6,0.58974853]
[1772766171657,0.58817943,2084.7,2083.8,0.58974853]
[1772766171861,0.58817943,2084.7,2083.9,0.58974853]
[1772766172261,0.58817943,2085.0,2083.9,0.58974853]
[1772766174569,0.58817943,2085.0,2084.0,0.58974853]
[1772766176070,5.48060024,2084.9,2084.0,0.58974853]
[1772766176270,0.58817943,2084.8,2084.0,0.58974853]
[1772766176475,2.12284179,2084.8,2083.8,41.38974853]
[1772766176675,0.58817943,2084.7,2083.8,0.58974853]
[1772766178569,0.58817943,2084.6,2084.0,0.58974853]
[1772766179073,0.58817943,2084.4,2083.6,0.58974853]
[1772766179471,0.58817943,2084.4,2083.7,40.8]
[1772766179678,0.58817943,2084.4,2084.0,2.12475339]
[1772766180179,0.58817943,2084.4,2084.0,0.58974853]
[1772766181379,2.12318429,2084.4,2083.7,41.34456658]
[1772766181673,0.5505335,2084.3,2083.6,2.07957144]
[1772766181873,0.5505335,2084.3,2083.9,0.54456658]
[1772766182579,0.5505335,2084.3,2083.6,0.54456658]
[1772766182778,0.5505335,2084.1,2083.5,41.34456658]
[1772766182975,0.5505335,2084.1,2083.5,0.54456658]
[1772766183279,0.5505335,2084.1,2083.4,0.54456658]
[1772766183778,0.5505335,2084.1,2083.4,2.07957144]
[1772766184477,0.5505335,2084.1,2083.4,0.54456658]
[1772766188680,0.5505335,2084.1,2083.3,0.54924]
[1772766191890,0.5505335,2084.0,2083.3,0.54924]
[1772766192889,0.5505335,2084.4,2083.5,0.54456658]
[1772766195387,0.5505335,2084.2,2083.5,0.54456658]
[1772766197893,0.5505335,2084.2,2083.4,0.54456658]
[1772766198291,0.5505335,2084.2,2083.3,0.54924]
[1772766199994,0.5505335,2084.0,2083.3,0.00467342]
[1772766200194,0.5505335,2083.8,2083.1,0.54456658]
[1772766200596,0.5505335,2083.6,2083.1,0.54456658]
[1772766201199,0.55512222,2083.6,2083.1,0.54948119]
[1772766201499,2.21156239,2084.3,2083.1,0.54948119]
[1772766201500,6.288,2083.8,2083.1,0.54948119]
[1772766202501,6.291568,2083.8,2083.1,0.54948119]
[1772766203002,6.8421015,2083.8,2083.1,0.54948119]
[1772766205506,0.5505335,2083.7,2083.1,0.54948119]
[1772766205704,6.8421015,2083.8,2083.1,0.54948119]
[1772766206606,6.8421015,2083.8,2083.4,0.54456658]
[1772766207002,0.003568,2083.8,2083.4,0.54456658]
[1772766207507,0.5541015,2083.8,2083.4,0.54456658]
[1772766208809,6.291568,2083.8,2083.4,0.54456658]
[1772766209008,0.003568,2083.8,2083.4,0.54456658]
[1772766210609,6.82955593,2084.0,2083.6,0.59362962]
[1772766210812,0.54155593,2084.2,2083.6,0.59362962]
[1772766211107,0.54155593,2084.2,2083.8,0.59362962]
[1772766211611,0.54625255,2084.2,2083.8,0.59362962]
[1772766215611,0.54625255,2084.2,2083.6,0.59362962]
[1772766216110,0.54155593,2084.0,2083.4,0.59362962]
[1772766216412,0.54155593,2083.8,2083.4,0.59362962]
[1772766218714,6.82955593,2083.9,2083.4,0.59362962]
[1772766218915,6.288,2084.1,2083.7,0.59362962]
[1772766219510,0.54625255,2084.2,2083.7,0.59362962]
[1772766219714,0.00469662,2084.2,2083.7,0.59362962]
[1772766219915,0.00469662,2084.2,2083.9,0.59362962]
[1772766221014,0.00469662,2084.2,2083.6,1.53586509]
[1772766221015,0.54155593,2084.1,2083.6,0.59362962]
[1772766222208,0.00469662,2084.2,2083.9,0.59362962]
[1772766222613,6.288,2084.3,2083.9,0.59362962]
[1772766222912,6.82955593,2084.3,2083.9,0.59362962]
[1772766223109,0.54155593,2084.2,2083.9,0.59362962]
[1772766223313,0.54155593,2084.2,2083.5,0.59362962]
[1772766223513,0.54537213,2084.2,2083.5,0.59362962]
[1772766224917,0.54537213,2084.2,2083.7,0.59362962]
[1772766227020,0.0038162,2084.2,2083.7,0.59362962]
[1772766227213,0.0038162,2084.2,2083.9,0.59362962]
[1772766227522,6.288,2084.3,2083.9,0.59362962]
[1772766227820,0.54155593,2084.5,2084.1,0.59362962]
[1772766228020,6.288,2084.5,2084.1,0.59362962]
[1772766228416,6.29151137,2084.5,2084.1,0.59362962]
[1772766229625,6.8330673,2084.5,2084.1,0.59362962]
[1772766230420,6.29151137,2084.5,2084.1,0.59362962]
[1772766234127,6.8330673,2084.5,2084.1,0.59362962]
[1772766234626,6.29151137,2084.5,2084.1,0.59362962]
[1772766236127,0.54155593,2084.9,2084.1,0.59362962]
[1772766236330,6.287,2084.7,2084.1,0.59362962]
[1772766236828,6.287,2084.7,2084.2,0.59362962]
[1772766237219,6.83207894,2084.7,2084.2,0.59362962]
[1772766238530,6.29052301,2084.7,2084.2,0.59362962]
[1772766238729,6.83207894,2084.7,2084.2,0.59362962]
[1772766239429,0.36246372,2085.1,2084.4,0.59362962]
[1772766239728,6.287,2085.2,2084.4,0.59362962]
[1772766240130,0.36222138,2085.3,2084.4,0.59362962]
[1772766240322,0.36222138,2085.3,2084.3,0.23987]
[1772766240323,6.65522382,2085.3,2084.6,0.53845251]
[1772766240619,0.36222138,2085.2,2084.6,0.54334092]
[1772766244532,0.36222138,2085.2,2084.6,0.00488841]
[1772766245329,0.36222138,2085.2,2084.3,0.53845251]
[1772766245922,0.36222138,2085.2,2084.2,0.53845251]
[1772766246122,0.36222138,2085.2,2084.2,0.54275249]
[1772766247733,6.64951293,2085.1,2084.2,0.54275249]
[1772766248533,0.36351293,2085.0,2084.2,0.54275249]
[1772766250540,0.35523929,2085.2,2084.4,0.53845251]
[1772766250739,6.29200244,2085.3,2084.4,0.53845251]
[1772766250937,6.64624408,2085.3,2084.4,0.53845251]
[1772766251438,0.35424164,2085.2,2084.4,0.53845251]
[1772766251837,6.64624408,2085.3,2084.4,0.53845251]
[1772766252037,6.64624408,2085.3,2084.6,0.53845251]
[1772766253238,0.35454639,2085.2,2084.6,0.53845251]
[1772766256340,0.00600244,2085.3,2084.6,0.53845251]
[1772766256542,5.98955707,2086.0,2084.8,0.53845251]
[1772766256543,6.286,2085.6,2084.8,0.53845251]
[1772766256939,3.99194417,2086.0,2085.0,0.53845251]
[1772766257142,0.35624005,2085.8,2085.2,0.53845251]
[1772766257640,0.00621003,2085.8,2085.2,0.53845251]
[1772766258040,0.35624005,2086.1,2085.2,0.53845251]
[1772766258240,6.64224005,2086.1,2085.2,0.53845251]
[1772766258445,0.35624005,2086.0,2085.2,0.53845251]
[1772766259245,0.36127846,2086.0,2085.2,0.53845251]
[1772766260343,0.36127846,2086.0,2085.0,0.53845251]
[1772766260542,0.36347339,2085.8,2085.0,0.53845251]
[1772766261640,0.36347339,2085.8,2084.6,0.53845251]
[1772766263251,0.35996567,2085.6,2084.6,0.53845251]
[1772766263553,0.35996567,2085.4,2084.6,0.53845251]
[1772766263752,0.35996567,2085.3,2084.6,0.53845251]
[1772766266451,0.35996567,2085.3,2084.5,0.53845251]
[1772766268545,3.99194417,2085.7,2084.5,0.53845251]
[1772766268546,0.35897425,2085.6,2084.5,0.53845251]
[1772766268747,0.35897425,2085.4,2084.5,0.53845251]
[1772766270756,0.35847922,2085.5,2084.7,0.57313354]
[1772766271152,0.36340843,2085.7,2084.7,0.57313354]
[1772766272355,0.36340843,2085.7,2084.9,0.57313354]
[1772766281163,0.37093561,2085.5,2084.9,0.57313354]
[1772766285762,0.3717885,2085.8,2084.9,0.57313354]
[1772766286066,6.285,2085.8,2084.9,0.57313354]
[1772766287166,6.65747158,2085.8,2084.9,0.57313354]
[1772766287771,0.37247158,2085.9,2084.9,0.57313354]
[1772766288064,5.49272271,2085.8,2084.9,0.57313354]
[1772766288257,6.65747158,2085.9,2084.9,0.57313354]
[1772766288455,5.86519512,2085.8,2085.2,0.57313354]
[1772766288655,0.37247158,2085.8,2085.2,0.57313354]
[1772766288858,0.10503841,2086.0,2085.2,0.57313354]
[1772766289064,5.49271756,2085.9,2085.2,0.57313354]
[1772766289264,5.49271756,2085.8,2085.2,0.57313354]
[1772766289464,0.10503841,2086.0,2085.3,1.53275175]
[1772766289665,5.49412549,2085.9,2085.4,0.57313354]
[1772766289865,0.10503841,2086.0,2085.4,0.57313354]
[1772766290060,0.10503841,2086.0,2085.6,0.57313354]
[1772766290261,0.37179506,2086.1,2085.6,0.57313354]
[1772766291161,0.37539706,2086.1,2085.6,0.57313354]
[1772766294069,0.003602,2086.1,2085.6,0.57313354]
[1772766294273,0.37563902,2086.1,2085.6,0.57313354]
[1772766299078,0.003602,2086.1,2085.6,0.57313354]
[1772766299677,0.38663557,2086.1,2085.6,0.57313354]
[1772766300580,0.38663557,2086.1,2085.7,0.58212532]
[1772766300774,0.38193059,2086.4,2085.8,1.53239385]
[1772766300976,0.38193059,2086.6,2085.9,0.58212532]
[1772766301176,11.77195955,2086.5,2085.9,0.58212532]
[1772766301379,6.66593059,2086.5,2085.9,0.58212532]
[1772766301578,0.38193059,2086.6,2086.1,0.58212532]
[1772766301977,0.38193059,2086.4,2085.8,2.11451917]
[1772766302180,0.38193059,2086.4,2085.8,0.58212532]
[1772766303983,0.38193059,2086.4,2085.9,0.58212532]
[1772766310279,0.39389502,2086.6,2086.1,0.58212532]
[1772766311883,1.53239385,2087.1,2086.3,0.58212532]
[1772766312185,0.39567966,2087.3,2086.7,0.58212532]
[1772766312483,0.39567966,2087.2,2086.7,0.58212532]
[1772766312987,0.39918244,2087.2,2086.7,0.58212532]
[1772766313587,0.00350278,2087.2,2086.7,0.58212532]
[1772766314089,0.39797224,2087.2,2086.7,0.58212532]
[1772766315488,0.00350278,2087.2,2086.7,0.58212532]
[1772766317189,0.38417079,2087.2,2086.7,0.58212532]
[1772766317589,0.38066801,2087.1,2086.7,0.58212532]
[1772766319287,0.38066801,2087.1,2086.5,0.58212532]
[1772766319492,0.38253683,2086.9,2086.4,0.58212532]
[1772766320493,0.38253683,2086.7,2086.4,0.58212532]
[1772766320796,0.38253683,2086.5,2085.9,0.58212532]
[1772766321099,0.38253683,2086.5,2086.0,0.58212532]
[1772766321689,6.281,2086.9,2085.8,0.58212532]
[1772766321690,0.5563677,2086.3,2085.8,0.58212532]
[1772766328599,0.55559886,2085.8,2085.5,0.58817306]
[1772766328795,0.55559886,2085.8,2085.2,0.58817306]
[1772766329798,0.55559886,2085.8,2085.2,0.59245851]
[1772766330098,6.281,2086.3,2085.2,0.59245851]
[1772766330099,0.55839932,2086.2,2085.6,0.53929931]
[1772766330495,6.281,2086.4,2085.6,0.53929931]
[1772766330694,0.55839932,2086.3,2085.6,0.53929931]
[1772766333100,1.53239385,2085.8,2085.3,0.53929931]
[1772766333402,0.55839932,2085.8,2085.3,0.53929931]
[1772766333699,0.55839932,2085.9,2085.3,0.53929931]
[1772766336499,0.55839932,2086.3,2085.3,0.53929931]
[1772766337297,0.55839932,2086.2,2085.3,0.53929931]
[1772766339900,0.55839932,2086.0,2085.3,0.53929931]
[1772766342602,0.55839932,2086.0,2085.2,0.54358476]
[1772766352110,5.51892724,2085.9,2085.2,0.54358476]
[1772766352309,0.55839932,2085.8,2085.2,0.54358476]
[1772766354202,6.283,2085.7,2085.2,0.54358476]
[1772766354408,0.55839932,2085.6,2085.2,0.00428545]
[1772766354604,0.55839932,2085.6,2085.1,0.53929931]
[1772766355508,0.55839932,2085.6,2085.1,0.54322014]
[1772766360016,0.55216784,2085.7,2085.2,0.56216568]
[1772766360217,0.54875825,2086.0,2085.6,0.56216568]
[1772766360516,5.52560973,2085.9,2085.6,0.56216568]
[1772766360715,0.54875825,2086.0,2085.6,0.56216568]
[1772766361016,6.06811249,2085.9,2085.6,0.56216568]
[1772766361216,0.55413499,2085.9,2085.6,0.56216568]
[1772766361913,0.55413499,2085.9,2085.3,1.53334219]
[1772766362108,0.55413499,2085.9,2085.4,0.56216568]
[1772766364716,0.55413499,2085.9,2085.2,0.56216568]
[1772766364915,0.54875825,2085.7,2085.2,0.56216568]
[1772766365118,0.54875825,2085.7,2085.1,0.56608651]
[1772766366912,0.54875825,2085.6,2084.8,0.56216568]
[1772766367118,0.54875825,2085.4,2084.7,0.56216568]
[1772766367514,4.54070242,2085.6,2084.7,0.56216568]
[1772766367716,6.284,2085.4,2084.7,0.56216568]
[1772766368017,6.284,2085.4,2084.7,0.56663929]
[1772766368417,0.54875825,2085.7,2084.9,0.56216568]
[1772766368621,5.53221899,2085.6,2084.9,0.56216568]
[1772766368919,0.54875825,2085.7,2084.9,0.56216568]
[1772766369119,5.53178367,2085.6,2084.9,0.56216568]
[1772766369414,0.54875825,2085.7,2084.9,0.56216568]
[1772766370718,0.00537674,2085.9,2085.1,0.56216568]
[1772766370917,0.54875825,2086.3,2085.6,0.56216568]
[1772766371920,0.55444965,2086.3,2085.6,0.56216568]
[1772766372217,0.54875825,2086.1,2085.5,0.56216568]
[1772766376425,0.54875825,2086.1,2085.3,0.56216568]
[1772766376720,0.54875825,2086.1,2085.1,0.56216568]
[1772766377723,0.54875825,2085.9,2085.1,0.56216568]
[1772766378431,6.283,2086.0,2085.1,0.56216568]
[1772766378730,6.83175825,2086.0,2085.1,0.56216568]
[1772766379629,0.54875825,2085.9,2085.1,0.56216568]
[1772766380229,0.54875825,2085.9,2085.0,0.56216568]
[1772766388735,0.54875825,2085.9,2084.7,6.01859458]
[1772766388937,0.42531081,2085.8,2084.8,0.5783781]
[1772766389137,0.55666157,2085.6,2084.8,0.5783781]
[1772766389439,0.55666157,2085.4,2084.8,0.5783781]
[1772766390035,0.55666157,2085.4,2084.7,0.55651911]
[1772766393338,6.85934827,2085.3,2084.7,0.55651911]